bitfinex/quotes_SOLUSD_20241113
["timestamp","ask_amount","ask_price","bid_price","bid_amount"]
[1731463297400,23.79696046,210.59,210.51,23.79696046]
[1731463297597,11.8692,210.63,210.49,16.6275]
[1731463297598,23.79696046,210.55,210.49,11.8767]
[1731463297800,23.79696046,210.56,210.49,35.67366046]
[1731463298009,23.79696046,210.56,210.49,40.42446046]
[1731463298299,23.79696046,210.56,210.5,23.776884]
[1731463298880,23.79696046,210.51,210.5,23.776884]
[1731463299080,20.0,210.5,210.35,20.4232]
[1731463299296,23.79696046,210.44,210.36,23.79696046]
[1731463299499,23.79696046,210.44,210.37,28.55046046]
[1731463299812,20.0,210.5,210.35,15.6694]
[1731463299813,23.79696046,210.41,210.35,4.7539]
[1731463300139,23.79696046,210.42,210.34,23.79696046]
[1731463300484,23.79696046,210.4,210.33,4.7542]
[1731463300682,23.79696046,210.4,210.33,28.55116046]
[1731463300878,38.72478928,210.41,210.33,43.47898928]
[1731463301096,38.72478928,210.38,210.33,11.886]
[1731463301297,4.7526,210.41,210.22,0.1]
[1731463301298,4.7526,210.41,210.25,4.7562]
[1731463301503,38.72478928,210.38,210.25,4.7562]
[1731463301690,38.72478928,210.38,210.31,38.72478928]
[1731463302081,38.72478928,210.38,210.3,38.72478928]
[1731463302280,38.72478928,210.36,210.28,50.61368928]
[1731463302613,38.72478928,210.34,210.28,11.8889]
[1731463302804,38.72478928,210.29,210.22,11.892]
[1731463303502,38.72478928,210.31,210.23,38.72478928]
[1731463303899,38.72478928,210.25,210.19,4.7575]
[1731463304096,38.72478928,210.2,210.17,11.895]
[1731463304286,0.1,210.24,210.12,11.8978]
[1731463304487,38.72478928,210.15,210.08,4.76]
[1731463304811,0.1,210.21,210.06,16.6612]
[1731463305116,38.72478928,210.1,210.03,43.48578928]
[1731463305290,38.72478928,210.07,210.01,43.48628928]
[1731463305613,38.72478928,210.07,210.01,4.7615]
[1731463305906,20.0,210.09,210.03,38.72478928]
[1731463306208,20.0,210.09,210.02,38.20158928]
[1731463306596,20.0,210.1,210.04,38.72478928]
[1731463306909,38.72478928,210.16,210.08,62.50167328]
[1731463307203,0.1,210.25,210.11,23.776884]
[1731463307406,0.1,210.27,210.17,23.776884]
[1731463307599,0.1,210.23,210.02,16.6348]
[1731463307800,0.1,210.23,210.03,23.776884]
[1731463308183,4.7569,210.22,210.05,23.776884]
[1731463308387,4.7557,210.27,210.05,23.876884]
[1731463308588,4.8557,210.27,210.06,0.1]
[1731463308787,38.72478928,210.24,210.18,23.776884]
[1731463309203,38.72478928,210.25,210.18,62.50167328]
[1731463309408,44.74488928,210.28,210.21,23.776884]
[1731463309610,38.72478928,210.28,210.21,23.776884]
[1731463311187,38.72478928,210.25,210.2,23.776884]
[1731463311416,38.72478928,210.21,210.18,23.776884]
[1731463311896,38.72478928,210.2,210.13,43.48358928]
[1731463312092,38.72478928,210.2,210.14,23.776884]
[1731463312502,38.72478928,210.16,210.11,11.8982]
[1731463312699,0.1,210.25,210.11,11.8982]
[1731463312700,38.72478928,210.18,210.11,11.8982]
[1731463312906,38.72478928,210.17,210.11,11.8982]
[1731463313599,38.72478928,210.18,210.11,11.8982]
[1731463314003,38.72478928,210.21,210.13,38.72478928]
[1731463314294,11.889,210.28,210.11,16.6576]
[1731463314295,38.72478928,210.22,210.15,23.776884]
[1731463314504,38.72478928,210.23,210.15,62.50167328]
[1731463314705,38.72478928,210.24,210.17,23.776884]
[1731463314916,38.72478928,210.23,210.17,23.776884]
[1731463315101,38.72478928,210.2,210.14,23.776884]
[1731463315306,38.72478928,210.21,210.15,4.7585]
[1731463315505,38.72478928,210.2,210.16,23.776884]
[1731463316218,38.72478928,210.18,210.13,23.776884]
[1731463316409,38.72478928,210.2,210.13,62.50167328]
[1731463317414,0.1,210.3,210.13,62.50167328]
[1731463317415,38.72478928,210.21,210.15,23.776884]
[1731463317815,38.72478928,210.22,210.15,23.776884]
[1731463318404,38.72478928,210.21,210.15,23.776884]
[1731463319301,38.72478928,210.29,210.2,38.72478928]
[1731463319498,38.72478928,210.28,210.23,23.776884]
[1731463319718,38.72478928,210.27,210.23,23.776884]
[1731463319902,38.72478928,210.28,210.23,23.776884]
[1731463320105,38.72478928,210.28,210.21,23.776884]
[1731463320304,38.72478928,210.27,210.19,23.776884]
[1731463320504,38.72478928,210.29,210.22,23.776884]
[1731463321296,38.72478928,210.27,210.22,23.776884]
[1731463321905,38.72478928,210.28,210.22,23.776884]
[1731463322525,20.0,210.22,210.04,0.1]
[1731463322721,38.72478928,210.19,210.12,38.72478928]
[1731463322923,38.72478928,210.2,210.1,11.8987]
[1731463323098,38.72478928,210.17,210.1,50.62348928]
[1731463323297,38.72478928,210.17,210.07,4.7603]
[1731463323298,0.1,210.24,210.07,4.7603]
[1731463323823,0.1,210.21,210.07,4.7603]
[1731463324526,38.72478928,210.16,210.08,38.72478928]
[1731463324725,38.72478928,210.16,210.1,23.776884]
[1731463324904,38.72478928,210.18,210.11,38.72478928]
[1731463325098,38.72478928,210.16,210.08,38.72478928]
[1731463325299,38.72478928,210.12,210.05,38.72478928]
[1731463325602,38.72478928,210.1,210.02,67.26278928]
[1731463325800,38.72478928,210.09,210.02,55.38928928]
[1731463325998,24.7571,210.21,210.04,0.1]
[1731463326217,43.48188928,210.21,210.14,38.72478928]
[1731463326417,38.72478928,210.23,210.16,38.72478928]
[1731463326626,38.72478928,210.21,210.13,38.72478928]
[1731463326936,38.72478928,210.21,210.14,23.776884]
[1731463327097,38.72478928,210.2,210.14,23.776884]
[1731463327297,38.72478928,210.2,210.13,23.776884]
[1731463327502,43.48198928,210.21,210.15,23.776884]
[1731463327735,43.48158928,210.23,210.16,38.72478928]
[1731463328021,38.72478928,210.28,210.21,38.72478928]
[1731463328222,38.72478928,210.28,210.22,23.776884]
[1731463328525,38.72478928,210.27,210.22,23.776884]
[1731463328721,38.72478928,210.28,210.21,62.50167328]
[1731463329203,43.47958928,210.32,210.24,62.50167328]
[1731463329403,43.47958928,210.32,210.26,23.776884]
[1731463329811,38.72478928,210.34,210.28,23.776884]
[1731463330014,38.72478928,210.33,210.28,23.776884]
[1731463330209,38.72478928,210.34,210.27,62.50167328]
[1731463330410,38.72478928,210.34,210.27,23.776884]
[1731463331006,38.72478928,210.32,210.27,23.776884]
[1731463331211,38.72478928,210.36,210.29,38.72478928]
[1731463331418,38.72478928,210.36,210.3,23.776884]
[1731463331716,38.72478928,210.37,210.3,23.776884]
[1731463331921,4.7532,210.39,210.28,23.776884]
[1731463331922,38.72478928,210.34,210.28,23.776884]
[1731463332102,38.72478928,210.32,210.28,23.776884]
[1731463333223,38.72478928,210.3,210.28,23.776884]
[1731463333410,38.72478928,210.31,210.28,23.776884]
[1731463333729,38.72478928,210.32,210.26,23.776884]
[1731463334024,38.72478928,210.31,210.26,23.776884]
[1731463334201,38.72478928,210.32,210.26,23.776884]
[1731463334603,38.72478928,210.27,210.23,23.776884]
[1731463334803,38.72478928,210.27,210.22,11.8922]
[1731463335028,38.72478928,210.29,210.22,11.8922]
[1731463335216,38.72478928,210.32,210.25,38.72478928]
[1731463335417,38.72478928,210.33,210.26,38.72478928]
[1731463335727,38.72478928,210.33,210.25,38.72478928]
[1731463335914,38.72478928,210.3,210.24,38.72478928]
[1731463336122,38.72478928,210.3,210.23,23.776884]
[1731463336421,38.72478928,210.31,210.23,62.50167328]
[1731463336728,38.72478928,210.31,210.25,23.776884]
[1731463337109,38.72478928,210.31,210.24,28.533184]
[1731463337822,38.72478928,210.4,210.31,23.776884]
[1731463338030,38.72478928,210.4,210.33,23.776884]
[1731463339107,20.0,210.39,210.33,23.776884]
[1731463339307,38.72478928,210.36,210.3,23.776884]
[1731463339529,38.72478928,210.34,210.3,23.776884]
[1731463339828,38.72478928,210.31,210.28,23.776884]
[1731463340027,38.72478928,210.3,210.27,23.776884]
[1731463340213,38.72478928,210.32,210.25,38.72478928]
[1731463340422,38.72478928,210.31,210.24,16.6475]
[1731463340919,38.72478928,210.3,210.24,11.8911]
[1731463341430,38.72478928,210.31,210.25,23.776884]
[1731463341612,38.72478928,210.34,210.27,62.50167328]
[1731463341819,43.47878928,210.35,210.27,38.72478928]
[1731463342026,38.72478928,210.29,210.28,23.776884]
[1731463342229,38.72478928,210.29,210.2,38.72478928]
[1731463342422,6.1817,210.33,210.19,55.37598928]
[1731463342628,38.72478928,210.23,210.16,38.72478928]
[1731463342930,38.72478928,210.25,210.18,38.72478928]
[1731463343229,4.7564,210.24,210.17,38.72478928]
[1731463343440,4.7564,210.24,210.1,18.4851]
[1731463343641,4.7564,210.24,209.97,0.4800341]
[1731463343642,38.72478928,210.16,210.09,38.72478928]
[1731463343815,38.72478928,210.13,210.05,50.62638928]
[1731463344016,20.0,210.23,210.05,16.6623]
[1731463344324,38.72478928,210.16,210.08,38.72478928]
[1731463344529,38.72478928,210.15,210.08,38.72478928]
[1731463344831,58.72478928,210.13,210.05,50.62638928]
[1731463345039,38.72478928,210.12,210.05,11.9016]
[1731463345241,63.48378928,210.13,210.05,55.38708928]
[1731463345441,24.759,210.13,210.07,38.72478928]
[1731463345738,24.759,210.13,210.06,38.72478928]
[1731463345936,38.72478928,210.15,210.07,38.72478928]
[1731463346242,38.72478928,210.17,210.1,38.72478928]
[1731463346427,43.48268928,210.18,210.11,38.72478928]
[1731463346612,38.72478928,210.19,210.12,23.776884]
[1731463346938,20.0,210.19,210.15,23.776884]
[1731463347233,20.0,210.2,210.15,23.776884]
[1731463347612,38.72478928,210.22,210.15,23.776884]
[1731463347813,43.48158928,210.23,210.15,67.25997328]
[1731463348013,38.72478928,210.16,210.04,11.9024]
[1731463348214,38.72478928,210.14,210.06,38.72478928]
[1731463348415,38.72478928,210.13,210.05,38.72478928]
[1731463348609,38.72478928,210.14,210.06,38.72478928]
[1731463348825,38.72478928,210.14,210.07,38.72478928]
[1731463349008,20.1,210.2,210.07,38.72478928]
[1731463349214,38.72478928,210.14,210.07,38.72478928]
[1731463349412,43.48348928,210.14,210.05,38.72478928]
[1731463349635,38.72478928,210.12,210.04,11.9024]
[1731463349837,38.72478928,210.09,210.01,38.72478928]
[1731463350138,4.7587,210.14,210.01,38.72478928]
[1731463350139,38.72478928,210.1,210.02,38.72478928]
[1731463350640,38.72478928,210.1,210.03,38.72478928]
[1731463351138,38.72478928,210.09,210.01,55.39038928]
[1731463351346,38.72478928,210.07,210.0,38.72478928]
[1731463351514,38.72478928,210.07,209.97,15.5087341]
[1731463351515,38.72478928,210.03,209.97,0.4800341]
[1731463351912,38.72478928,210.04,209.97,39.20482338]
[1731463352129,58.72478928,210.04,209.97,0.4800341]
[1731463352662,38.72478928,210.02,209.97,0.4800341]
[1731463352813,20.0,210.04,209.97,0.4800341]
[1731463353019,38.72478928,210.01,209.97,0.4800341]
[1731463353238,20.0,210.04,209.97,0.4800341]
[1731463353239,38.72478928,209.98,209.97,0.4800341]
[1731463353421,43.48708928,209.98,209.97,0.4800341]
[1731463354036,20.0,210.04,209.97,0.4800341]
[1731463354037,38.72478928,209.99,209.97,0.4800341]
[1731463354538,4.7622,209.99,209.97,0.4800341]
[1731463354719,45.04418928,209.98,209.97,0.4800341]
[1731463355818,45.14418928,209.98,209.97,0.4800341]
[1731463356028,45.14418928,209.98,209.82,4.7659]
[1731463356325,38.72478928,209.93,209.86,38.72478928]
[1731463356525,4.7625,209.97,209.82,16.6808]
[1731463356831,38.72478928,209.93,209.82,16.6808]
[1731463357137,4.8625,209.97,209.82,16.6808]
[1731463357321,16.8689,209.97,209.82,11.9149]
[1731463357522,0.2,209.95,209.79,4.7665]
[1731463357844,4.7632,209.94,209.77,16.6848]
[1731463358336,38.72478928,209.84,209.77,55.40958928]
[1731463358536,38.72478928,209.81,209.76,0.4800341]
[1731463358926,38.72478928,209.83,209.76,0.4800341]
[1731463359125,38.72478928,209.84,209.77,38.72478928]
[1731463359438,38.72478928,209.83,209.76,39.20482338]
[1731463359762,38.72478928,209.85,209.78,38.72478928]
[1731463360118,38.72478928,209.86,209.79,38.72478928]
[1731463360830,4.7634,209.93,209.77,23.776884]
[1731463360831,38.72478928,209.83,209.77,23.776884]
[1731463361141,38.72478928,209.8,209.76,0.4800341]
[1731463361319,38.72478928,209.81,209.76,0.4800341]
[1731463362234,38.72478928,209.85,209.78,38.72478928]
[1731463362636,38.72478928,209.85,209.79,23.776884]
[1731463362840,38.72478928,209.85,209.77,62.50167328]
[1731463363029,38.72478928,209.86,209.78,38.72478928]
[1731463363228,38.72478928,209.85,209.79,23.776884]
[1731463363616,38.72478928,209.86,209.79,23.776884]
[1731463364123,38.72478928,209.87,209.81,23.776884]
[1731463364335,38.72478928,209.86,209.81,23.776884]
[1731463364541,38.72478928,209.86,209.79,16.6831]
[1731463364542,38.72478928,209.86,209.8,23.776884]
[1731463365038,38.72478928,209.88,209.8,62.50167328]
[1731463365239,38.72478928,209.9,209.83,23.776884]
[1731463365443,38.72478928,209.89,209.83,23.776884]
[1731463365650,38.72478928,209.84,209.75,38.72478928]
[1731463365829,38.72478928,209.81,209.75,23.776884]
[1731463366029,38.72478928,209.88,209.74,11.9192]
[1731463366030,38.72478928,209.79,209.74,11.9192]
[1731463366431,38.72478928,209.78,209.74,11.9192]
[1731463366742,38.72478928,209.79,209.72,38.72478928]
[1731463366931,38.72478928,209.79,209.71,38.72478928]
[1731463367953,38.72478928,209.79,209.73,4.7678]
[1731463368132,38.72478928,209.81,209.74,4.7676]
[1731463368333,38.72478928,209.79,209.74,4.7676]
[1731463368726,38.72478928,209.79,209.71,38.72478928]
[1731463368926,38.72478928,209.79,209.72,4.7681]
[1731463369134,38.72478928,209.79,209.73,4.7679]
[1731463369436,38.72478928,209.79,209.74,23.776884]
[1731463369638,38.72478928,209.77,209.74,23.776884]
[1731463369851,38.72478928,209.77,209.69,11.922]
[1731463370029,38.72478928,209.77,209.69,50.64678928]
[1731463370236,38.72478928,209.77,209.71,4.7684]
[1731463370950,38.72478928,209.77,209.73,4.768]
[1731463371133,38.72478928,209.79,209.72,4.7681]
[1731463371334,38.72478928,209.79,209.71,38.72478928]
[1731463371545,38.72478928,209.77,209.71,4.7683]
[1731463373253,38.72478928,209.78,209.73,4.7679]
[1731463373448,38.72478928,209.79,209.74,23.776884]
[1731463373673,38.72478928,209.78,209.74,23.776884]
[1731463373949,38.72478928,209.78,209.74,28.544584]
[1731463374445,38.72478928,209.8,209.74,28.544584]
[1731463375033,38.72478928,209.8,209.76,5.2472341]
[1731463375251,38.72478928,209.83,209.77,23.776884]
[1731463375428,38.72478928,209.8,209.77,23.776884]
[1731463375629,38.72478928,209.78,209.76,0.4800341]
[1731463376747,38.72478928,209.79,209.76,0.4800341]
[1731463377050,38.72478928,209.81,209.77,23.776884]
[1731463377237,38.72478928,209.83,209.77,23.776884]
[1731463377441,38.72478928,209.84,209.77,23.776884]
[1731463377752,38.72478928,209.83,209.77,23.776884]
[1731463378542,38.72478928,209.83,209.79,23.776884]
[1731463378752,38.72478928,209.85,209.79,23.776884]
[1731463378959,4.7645,209.89,209.79,23.776884]
[1731463378960,41.7801367,209.84,209.79,23.776884]
[1731463379138,21.7801367,209.85,209.79,23.776884]
[1731463379341,21.7801367,209.8,209.76,0.4800341]
[1731463379645,21.7801367,209.79,209.76,0.4800341]
[1731463380049,21.7801367,209.81,209.76,0.4800341]
[1731463380257,21.7801367,209.82,209.76,17.1655341]
[1731463380552,21.7801367,209.79,209.76,0.4800341]
[1731463381151,21.7801367,209.83,209.76,0.4800341]
[1731463381353,21.7801367,209.87,209.79,45.5570207]
[1731463381535,21.7801367,209.86,209.79,45.5570207]
[1731463381737,21.7801367,209.86,209.79,21.7801367]
[1731463381937,21.7801367,209.89,209.82,23.776884]
[1731463382158,21.7801367,209.86,209.82,23.776884]
[1731463382459,21.7801367,209.83,209.76,12.3983341]
[1731463382758,16.7778,209.86,209.76,0.4800341]
[1731463382949,35.41828823,209.77,209.76,0.4800341]
[1731463384353,55.41828823,209.77,209.76,0.4800341]
[1731463384662,60.18538823,209.77,209.76,0.4800341]
[1731463389948,35.41828823,209.77,209.76,0.4800341]
[1731463390156,35.41828823,209.79,209.76,0.4800341]
[1731463390343,35.41828823,209.77,209.76,0.4800341]
[1731463392448,4.767,209.78,209.76,0.4800341]
[1731463392651,20.0,209.8,209.76,24.2569181]
[1731463392868,20.0,209.8,209.76,0.4800341]
[1731463393056,40.18458823,209.81,209.76,0.4800341]
[1731463393250,40.18458823,209.81,209.76,24.2569181]
[1731463393649,35.41828823,209.79,209.76,0.4800341]
[1731463393858,35.41828823,209.77,209.76,0.4800341]
[1731463394465,40.18538823,209.77,209.76,0.4800341]
[1731463394660,60.18538823,209.77,209.76,0.4800341]
[1731463396254,35.41828823,209.78,209.76,0.4800341]
[1731463397071,40.18508823,209.79,209.76,0.4800341]
[1731463397959,40.18518823,209.78,209.76,0.4800341]
[1731463398162,55.41828823,209.77,209.76,0.4800341]
[1731463399453,35.41828823,209.77,209.76,0.4800341]
[1731463399654,35.41828823,209.79,209.76,0.4800341]
[1731463399862,35.41828823,209.82,209.76,0.4800341]
[1731463400172,35.41828823,209.79,209.76,0.4800341]
[1731463401577,35.41828823,209.77,209.76,0.4800341]
[1731463402462,35.41828823,209.79,209.76,0.4800341]
[1731463402675,20.0,209.79,209.76,0.4800341]
[1731463402973,35.41828823,209.81,209.76,0.4800341]
[1731463403159,35.41828823,209.81,209.76,24.2569181]
[1731463403575,35.41828823,209.8,209.76,0.4800341]
[1731463403876,4.7655,209.84,209.76,0.4800341]
[1731463403877,35.41828823,209.81,209.76,0.4800341]
[1731463404072,35.41828823,209.83,209.76,64.44250633]
[1731463404280,35.41828823,209.83,209.77,23.776884]
[1731463404652,40.18378823,209.84,209.77,23.776884]
[1731463404885,21.78173265,209.86,209.79,23.776884]
[1731463405083,4.7646,209.88,209.78,21.78173265]
[1731463405374,4.7646,209.88,209.76,17.1656341]
[1731463405375,4.7632,209.94,209.82,40.457684]
[1731463405757,4.7632,209.94,209.85,21.78173265]
[1731463405958,26.54493265,209.94,209.87,23.776884]
[1731463406176,26.54493265,209.94,209.87,45.55861665]
[1731463406362,17.9612,210.01,209.87,45.55861665]
[1731463406363,21.78173265,209.96,209.89,23.776884]
[1731463407066,21.78173265,209.94,209.87,45.55861665]
[1731463407261,21.78173265,209.94,209.87,23.776884]
[1731463407462,21.78173265,209.93,209.87,23.776884]
[1731463407659,21.78173265,209.96,209.89,23.776884]
[1731463407966,21.78173265,209.98,209.91,21.78173265]
[1731463408166,26.54343265,210.01,209.93,21.78173265]
[1731463408367,26.54343265,210.01,209.94,23.776884]
[1731463408559,21.78173265,210.03,209.96,23.776884]
[1731463408766,21.78173265,210.04,209.96,45.55861665]
[1731463408967,21.78173265,210.05,209.97,21.78173265]
[1731463409176,21.78173265,210.06,209.98,45.55861665]
[1731463409476,21.78173265,210.05,210.02,23.776884]
[1731463409859,21.78173265,210.06,210.02,23.776884]
[1731463410058,4.7594,210.11,210.0,23.776884]
[1731463410059,21.78173265,210.07,210.0,23.776884]
[1731463410278,21.78173265,210.08,210.01,21.78173265]
[1731463410482,21.78173265,210.07,210.02,23.776884]
[1731463410660,21.78173265,210.07,210.0,23.776884]
[1731463410860,21.78173265,210.06,210.0,23.776884]
[1731463411080,21.78173265,210.04,210.0,23.776884]
[1731463411283,21.78173265,210.04,209.98,23.776884]
[1731463412087,24.7607,210.05,209.98,45.55861665]
[1731463412574,21.78173265,210.04,209.98,23.776884]
[1731463412764,46.54243265,210.05,209.98,21.78173265]
[1731463412967,21.78173265,210.04,209.99,23.776884]
[1731463413165,41.78173265,210.05,209.99,23.776884]
[1731463413368,21.78173265,210.04,209.98,23.776884]
[1731463413577,21.78173265,210.05,209.98,23.776884]
[1731463414079,21.78173265,210.07,209.99,23.776884]
[1731463414274,21.78173265,210.08,210.02,23.776884]
[1731463415075,21.78173265,210.07,210.01,23.776884]
[1731463415380,21.78173265,210.04,209.98,11.9058]
[1731463415568,21.78173265,210.04,209.99,23.776884]
[1731463415762,41.78173265,210.09,210.03,23.776884]
[1731463416580,20.0,210.09,210.03,23.776884]
[1731463416882,21.78173265,210.08,210.02,23.776884]
[1731463417084,21.78173265,210.09,210.04,23.776884]
[1731463417784,21.78173265,210.08,210.02,23.776884]
[1731463418083,41.78173265,210.07,209.99,21.78173265]
[1731463418667,21.78173265,210.1,210.02,21.78173265]
[1731463418869,21.78173265,210.1,210.03,21.78173265]
[1731463419178,21.78173265,210.12,210.06,23.776884]
[1731463419384,21.78173265,210.09,210.03,23.776884]
[1731463419579,4.7582,210.16,210.01,21.78173265]
[1731463419580,4.7582,210.16,210.07,21.78173265]
[1731463419779,21.78173265,210.15,210.08,23.776884]
[1731463420682,21.78173265,210.15,210.08,50.31851665]
[1731463420881,21.78173265,210.16,210.1,23.776884]
[1731463421074,20.0,210.15,210.1,23.776884]
[1731463421401,21.78173265,210.17,210.1,45.55861665]
[1731463421570,26.53983265,210.17,210.1,23.776884]
[1731463421769,21.78173265,210.16,210.1,23.776884]
[1731463421973,21.78173265,210.13,210.07,23.776884]
[1731463422174,21.78173265,210.14,210.07,23.776884]
[1731463422388,21.78173265,210.14,210.07,45.55861665]
[1731463422593,21.78173265,210.14,210.07,23.776884]
[1731463423299,20.0,210.16,210.1,21.78173265]
[1731463423475,20.0,210.16,210.07,4.7601]
[1731463423476,21.78173265,210.18,210.11,45.55861665]
[1731463423675,21.78173265,210.17,210.11,23.776884]
[1731463423974,26.53933265,210.19,210.11,45.55861665]
[1731463424388,26.53933265,210.19,210.13,23.776884]
[1731463424783,21.78173265,210.21,210.13,21.78173265]
[1731463424983,21.78173265,210.23,210.16,21.78173265]
[1731463425208,21.78173265,210.24,210.17,28.534784]
[1731463425381,21.78173265,210.25,210.19,23.776884]
[1731463425577,26.53783265,210.26,210.19,45.55861665]
[1731463425790,21.78173265,210.25,210.17,26.53963265]
[1731463426099,4.7561,210.26,210.17,26.53963265]
[1731463426100,21.78173265,210.24,210.17,45.55861665]
[1731463426397,21.78173265,210.24,210.17,23.776884]
[1731463427301,37.42443265,210.3,210.11,16.6579]
[1731463427302,21.78173265,210.18,210.14,23.776884]
[1731463427478,21.78173265,210.18,210.12,11.8979]
[1731463427886,21.78173265,210.19,210.12,33.67963265]
[1731463428099,21.78173265,210.19,210.12,11.8979]
[1731463428509,21.78173265,210.18,210.13,23.776884]
[1731463428882,4.7576,210.19,210.1,23.776884]
[1731463428883,21.78173265,210.16,210.1,23.776884]
[1731463429080,21.78173265,210.14,210.07,38.44213265]
[1731463429285,21.78173265,210.11,210.07,11.9003]
[1731463430502,21.78173265,210.13,210.08,23.776884]
[1731463430700,21.78173265,210.2,210.12,45.55861665]
[1731463430903,21.78173265,210.21,210.13,21.78173265]
[1731463431079,21.78173265,210.21,210.14,23.776884]
[1731463431401,21.78173265,210.2,210.14,23.776884]
[1731463431981,21.78173265,210.2,210.07,21.78173265]
[1731463431982,21.78173265,210.15,210.07,21.78173265]
[1731463432182,21.78173265,210.13,210.06,33.68253265]
[1731463432378,21.78173265,210.15,210.08,21.78173265]
[1731463432603,21.78173265,210.17,210.09,21.78173265]
[1731463433199,21.78173265,210.13,210.06,33.68253265]
[1731463433688,21.78173265,210.14,210.07,23.776884]
[1731463434202,21.78173265,210.13,210.07,28.537084]
[1731463434398,21.78173265,210.12,210.07,28.537084]
[1731463435309,21.78173265,210.14,210.07,50.31881665]
[1731463435609,21.78173265,210.15,210.07,50.31881665]
[1731463435983,21.78173265,210.14,210.07,50.31881665]
[1731463436597,26.54043265,210.14,210.07,50.31881665]
[1731463437197,21.78173265,210.11,210.05,23.776884]
[1731463437391,21.78173265,210.12,210.05,45.55861665]
[1731463438298,21.78173265,210.12,210.05,23.776884]
[1731463438508,26.54113265,210.11,210.05,23.776884]
[1731463438687,21.78173265,210.09,210.05,23.776884]
[1731463438888,21.78173265,210.07,210.0,38.44813265]
[1731463439205,21.78173265,210.08,210.01,21.78173265]
[1731463439505,21.78173265,210.1,210.02,21.78173265]
[1731463439892,21.78173265,210.09,210.01,21.78173265]
[1731463440104,21.78173265,210.08,210.01,23.776884]
[1731463440405,26.54153265,210.1,210.03,45.55861665]
[1731463440584,20.0,210.09,210.03,45.55861665]
[1731463440792,21.78173265,210.05,209.98,4.7621]
[1731463441109,20.0,210.09,210.0,21.78173265]
[1731463441311,20.0,210.07,210.0,21.78173265]
[1731463441617,21.78173265,210.07,210.0,21.78173265]
[1731463441801,21.78173265,210.08,210.0,21.78173265]
[1731463442310,21.78173265,210.11,210.03,21.78173265]
[1731463442520,21.78173265,210.11,210.04,23.776884]
[1731463442808,21.78173265,210.13,210.07,23.776884]
[1731463442987,21.78173265,210.11,210.04,21.78173265]
[1731463443187,21.78173265,210.1,210.05,23.776884]
[1731463443406,21.78173265,210.08,210.05,23.776884]
[1731463443613,21.78173265,210.06,209.96,21.78173265]
[1731463443811,21.78173265,210.02,209.95,33.68903265]
[1731463444187,21.78173265,210.02,209.95,38.45203265]
[1731463444385,21.78173265,210.01,209.95,16.6703]
[1731463444590,21.78173265,210.03,209.95,38.45203265]
[1731463445417,26.54303265,210.03,209.95,38.45203265]
[1731463445788,26.54303265,210.03,209.96,23.776884]
[1731463446691,26.54303265,210.03,209.96,28.539584]
[1731463447292,21.78173265,210.03,209.96,40.446584]
[1731463447605,20.0,210.0,209.93,23.776884]
[1731463448515,21.78173265,210.01,209.93,28.540184]
[1731463448701,20.0,210.04,209.98,23.776884]
[1731463448903,21.78173265,210.05,209.98,23.776884]
[1731463449092,4.7603,210.07,210.0,45.55861665]
[1731463449093,26.54203265,210.07,210.0,45.55861665]
[1731463449298,21.78173265,210.09,210.03,23.776884]
[1731463449492,21.78173265,210.11,210.04,21.78173265]
[1731463449699,21.78173265,210.11,210.05,23.776884]
[1731463450090,21.78173265,210.11,210.04,23.776884]
[1731463450508,21.78173265,210.08,210.02,23.776884]
[1731463450702,21.78173265,210.08,210.01,23.776884]
[1731463450900,21.78173265,210.09,210.01,45.55861665]
[1731463451097,21.78173265,210.07,210.01,23.776884]
[1731463451299,21.78173265,210.05,209.99,23.776884]
[1731463451501,41.78173265,210.04,209.99,23.776884]
[1731463451696,21.78173265,210.03,209.96,38.45113265]
[1731463451901,21.78173265,210.03,209.96,16.6694]
[1731463452400,21.78173265,210.03,209.96,11.9068]
[1731463452601,26.54293265,210.03,209.96,38.45133265]
[1731463453091,26.54293265,210.03,209.97,23.776884]
[1731463453916,21.78173265,210.04,209.97,28.539284]
[1731463454117,20.0,210.05,210.0,23.776884]
[1731463454297,21.78173265,210.06,210.0,23.776884]
[1731463454488,21.78173265,210.07,210.0,23.776884]
[1731463454693,21.78173265,210.08,210.02,23.776884]
[1731463454896,21.78173265,210.07,210.0,45.55861665]
[1731463455119,21.78173265,210.07,209.99,21.78173265]
[1731463455419,21.78173265,210.07,210.0,23.776884]
[1731463455606,21.78173265,210.07,210.0,45.55861665]
[1731463455918,4.7595,210.11,210.07,23.776884]
[1731463456219,21.78173265,210.08,210.02,23.776884]
[1731463456709,4.7595,210.11,210.02,45.55861665]